fUSD/lending_fUSD_20251119
["ID","MTS","AMOUNT","RATE_DAILY","PERIOD"]
[394424548,1763560238642,-478.61,0.00040247,2]
[394424549,1763560238651,-478.61,0.00040247,2]
[394424550,1763560238660,-478.61,0.00040247,2]
[394424551,1763560238670,-168.0,0.00040253,2]
[394424552,1763560238679,-902.0,0.000403,4]
[394424553,1763560238688,-169.95572609,0.0004031,35]
[394424554,1763560238697,-508.70074188,0.00040321,5]
[394424555,1763560238707,-200.0,0.000404,7]
[394424556,1763560238716,-588.0,0.00040427,2]
[394424557,1763560238725,-2500.50183729,0.00040429,15]
[394424558,1763560238734,-833.56,0.00040493,2]
[394424559,1763560238743,-911.02,0.00040521,2]
[394424560,1763560238753,-177.39,0.00040521,2]
[394424561,1763560238762,-150.0,0.00040521,2]
[394424562,1763560238771,-550.38,0.00040521,2]
[394424563,1763560238782,-1209.94,0.00040521,2]
[394424564,1763560238791,-550.16,0.00040521,2]
[394424565,1763560238800,-2246.46172,0.000406,5]
[394424566,1763560238810,-6423.0,0.00040616,5]
[394424567,1763560238819,-161.93682413,0.0004062,2]
[394424568,1763560238828,-1000.0,0.00040621,5]
[394424569,1763560238838,-168.0,0.00040624,2]
[394424570,1763560238847,-249.0,0.00040636,2]
[394424571,1763560238856,-2500.50183729,0.00040646,15]
[394424572,1763560238866,-500.0,0.00040712,2]
[394424573,1763560238876,-585.0,0.00040794,2]
[394424574,1763560238886,-233.51,0.00040796,2]
[394424575,1763560238896,-200.0,0.00040804,7]
[394424576,1763560238906,-2500.50183729,0.00040862,15]
[394424577,1763560238916,-586.0,0.00040865,2]
[394424578,1763560238926,-166.66,0.00040877,30]
[394424579,1763560238935,-403.49890649,0.00040895,2]
[394424580,1763560238949,-620.0,0.00040897,30]
[394424581,1763560238958,-585.0,0.00040934,120]
[394424582,1763560238968,-165.0,0.00041,90]
[394424583,1763560238977,-151.0,0.00041,90]
[394424584,1763560238988,-486.71535261,0.00041,7]
[394424585,1763560238998,-24095.77631032,0.00041,2]
[394424586,1763560239008,-164.0,0.00041,90]
[394424587,1763560239018,-10436.45505718,0.00041,120]
[394424588,1763560239028,-3433.0,0.00041014,2]
[394424589,1763560239038,-575.0,0.00041014,2]
[394424590,1763560239047,-609.0,0.00041014,2]
[394424591,1763560239056,-1319.0,0.00041014,2]
[394424592,1763560239065,-907.0,0.00041014,2]
[394424593,1763560239075,-1287.919,0.00041014,2]
[394424594,1763560239084,-1600.0,0.00041014,2]
[394424595,1763560239094,-822.0,0.00041014,2]
[394424596,1763560239104,-794.0,0.00041014,2]
[394424597,1763560239114,-1276.0,0.00041014,2]
[394424598,1763560239124,-150.0,0.00041014,2]
[394424599,1763560239137,-1605.0,0.00041014,2]
[394424600,1763560239147,-705.0,0.00041014,2]
[394424601,1763560239157,-585.0,0.0004104,2]
[394424602,1763560239168,-2500.50183729,0.00041079,15]
[394424603,1763560239178,-688.33,0.00041095,2]
[394424604,1763560239188,-2766.52,0.00041095,2]
[394424605,1763560239198,-300.0,0.00041095,2]
[394424606,1763560239209,-500.0,0.00041096,120]
[394424607,1763560239220,-154.81,0.00041096,2]
[394424608,1763560239230,-1128.0,0.000411,2]
[394424609,1763560239240,-537.3019893,0.000411,2]
[394424610,1763560239250,-250.0,0.000411,2]
[394424611,1763560239260,-500.0,0.00041163,7]
[394424612,1763560239270,-500.0,0.00041163,7]
[394424613,1763560239280,-500.0,0.00041163,7]
[394424614,1763560239290,-500.0,0.00041163,7]
[394424615,1763560239300,-500.0,0.00041163,7]
[394424616,1763560239310,-500.0,0.00041163,7]
[394424617,1763560239320,-500.0,0.00041163,7]
[394424618,1763560239333,-500.0,0.00041163,7]
[394424619,1763560239343,-500.0,0.00041163,7]
[394424620,1763560239352,-500.0,0.00041163,7]
[394424621,1763560239362,-500.0,0.00041163,7]
[394424622,1763560239373,-500.0,0.00041163,7]
[394424623,1763560239382,-500.0,0.00041163,7]
[394424624,1763560239393,-500.0,0.00041163,7]
[394424625,1763560239403,-500.0,0.00041163,7]
[394424626,1763560239412,-500.0,0.00041163,7]
[394424627,1763560239422,-500.0,0.00041163,7]
[394424628,1763560239432,-500.0,0.00041163,7]
[394424629,1763560239442,-571.29,0.00041163,7]
[394424630,1763560239451,-238.3,0.00041163,7]
[394424631,1763560239460,-360.10803368,0.00041168,10]
[394424632,1763560239470,-478.61,0.00041178,30]
[394424635,1763560239479,-478.61,0.00041178,30]
[394424637,1763560239489,-960.05,0.00041178,30]
[394424639,1763560239499,-200.0,0.00041212,7]
[394424640,1763560239508,-153.0,0.00041281,120]
[394424641,1763560239519,-153.0,0.00041281,120]
[394424642,1763560239530,-153.0,0.00041281,120]
[394424643,1763560239539,-153.0,0.00041281,120]
[394424644,1763560239549,-153.0,0.00041281,120]
[394424645,1763560239559,-153.0,0.00041281,120]
[394424646,1763560239568,-153.0,0.00041281,120]
[394424647,1763560239578,-153.0,0.00041281,120]
[394424648,1763560239588,-153.0,0.00041281,120]
[394424649,1763560239597,-153.0,0.00041281,120]
[394424650,1763560239606,-153.0,0.00041281,120]
[394424651,1763560239616,-153.0,0.00041281,120]
[394424652,1763560239625,-153.0,0.00041281,120]
[394424653,1763560239634,-153.0,0.00041281,120]
[394424654,1763560239642,-153.0,0.00041281,120]
[394424655,1763560239652,-153.0,0.00041281,120]
[394424656,1763560239661,-153.0,0.00041281,120]
[394424657,1763560239670,-153.0,0.00041281,120]
[394424658,1763560239679,-153.0,0.00041281,120]
[394424659,1763560239688,-153.0,0.00041281,120]
[394424660,1763560239700,-153.0,0.00041281,120]
[394424661,1763560239710,-153.0,0.00041281,120]
[394424662,1763560239719,-153.0,0.00041281,120]
[394424663,1763560239728,-153.0,0.00041281,120]
[394424664,1763560239737,-153.0,0.00041281,120]
[394424665,1763560239747,-2500.50183729,0.00041295,15]
[394424666,1763560239756,-620.0,0.00041318,30]
[394424667,1763560239766,-153.413991,0.0004132,2]
[394424668,1763560239777,-162.94935356,0.00041334,2]
[394424669,1763560239786,-153.0,0.00041335,120]
[394424670,1763560239796,-153.0,0.00041335,120]
[394424671,1763560239984,-153.0,0.00041335,120]
[394424672,1763560239996,-153.0,0.00041335,120]
[394424673,1763560240007,-153.0,0.00041335,120]
[394424674,1763560240016,-153.0,0.00041335,120]
[394424675,1763560240029,-153.0,0.00041335,120]
[394424676,1763560240038,-153.0,0.00041335,120]
[394424677,1763560240046,-153.0,0.00041335,120]
[394424678,1763560240056,-153.0,0.00041335,120]
[394424679,1763560240065,-153.0,0.00041335,120]
[394424680,1763560240074,-153.0,0.00041335,120]
[394424681,1763560240083,-153.0,0.00041335,120]
[394424682,1763560240092,-153.0,0.00041335,120]
[394424683,1763560240101,-153.0,0.00041335,120]
[394424684,1763560240110,-153.0,0.00041335,120]
[394424685,1763560240120,-153.0,0.00041335,120]
[394424686,1763560240129,-153.0,0.00041335,120]
[394424687,1763560240142,-161.93682413,0.00041341,3]
[394424688,1763560240151,-688.33,0.00041369,2]
[394424689,1763560240160,-2766.52,0.00041369,2]
[394424690,1763560240171,-300.0,0.00041369,2]
[394424691,1763560240180,-500.0,0.0004137,120]
[394424692,1763560240189,-209.74562306,0.000415,120]
[394424693,1763560240199,-2500.50183729,0.00041512,15]
[394424694,1763560240209,-2246.46172,0.000416,10]
[394424695,1763560240219,-200.0,0.00041624,7]
[394424696,1763560240228,-585.0,0.00041629,2]
[394424697,1763560240237,-288.62,0.00041638,2]
[394424698,1763560240246,-688.33,0.00041643,2]
[394424699,1763560240256,-2766.52,0.00041643,2]
[394424700,1763560240265,-300.0,0.00041643,2]
[394424701,1763560240274,-500.0,0.00041644,120]
[394424702,1763560240284,-2500.50183729,0.00041728,15]
[394424703,1763560240293,-152.813782,0.00041728,120]
[394424704,1763560240303,-620.0,0.0004174,30]
[394424705,1763560240312,-585.0,0.00041772,7]
[394424706,1763560240321,-150.46,0.00041818,2]
[394424707,1763560240330,-150.46,0.00041818,2]
[394424708,1763560240339,-150.46,0.00041818,2]
[394424709,1763560240349,-150.46,0.00041818,2]
[394424710,1763560240357,-3699859.09536112,0.00041828,120]
[394424711,1763560240367,-501.070849,0.00041828,120]
[394424712,1763560240376,-501.070849,0.00041828,120]
[394424713,1763560240385,-501.070849,0.00041828,120]
[394424714,1763560240394,-501.070849,0.00041828,120]
[394424715,1763560240403,-585.0,0.00041838,7]
[394424716,1763560240415,-150.0,0.000419,60]
[394424717,1763560240424,-688.33,0.00041917,2]
[394424718,1763560240434,-2766.52,0.00041917,2]
[394424719,1763560240443,-533.04,0.00041918,120]
[394424720,1763560240451,-133668.1991,0.00041951,30]
[394424721,1763560240461,-347.07296921,0.00041952,60]
[394424722,1763560240470,-2000.0,0.00041954,3]
[394424723,1763560240480,-249.0,0.00041966,7]
[394424724,1763560240488,-1127.67484095,0.00042,120]
[394424725,1763560240498,-358.95969906,0.00042,120]
[394424726,1763560240507,-900.0,0.00042058,2]
[394424727,1763560240516,-151.05152738,0.00042061,28]
[394424728,1763560240525,-161.93682413,0.00042061,6]
[394424729,1763560240535,-150.46,0.0004214,2]
[394424730,1763560240544,-1043.29775265,0.00042149,60]
[394424731,1763560240553,-212349.63334669,0.0004215,10]
[394424732,1763560240563,-1365512.55619458,0.0004215,5]
[394424733,1763560240572,-59915.79137302,0.0004215,15]
[394424734,1763560240581,-501.070849,0.0004215,120]
[394424735,1763560240589,-501.070849,0.0004215,120]
[394424736,1763560240598,-501.070849,0.0004215,120]
[394424737,1763560240607,-501.070849,0.0004215,120]
[394424738,1763560240616,-501.070849,0.0004215,120]
[394424739,1763560240625,-501.070849,0.0004215,120]
[394424740,1763560240634,-501.070849,0.0004215,120]
[394424741,1763560240643,-501.070849,0.0004215,120]
[394424742,1763560240651,-50000.0,0.0004216,30]
[394424743,1763560240662,-50000.0,0.0004216,31]
[394424744,1763560240670,-50000.0,0.0004216,32]
[394424745,1763560240680,-48000.0,0.0004216,33]
[394424746,1763560240689,-501.070849,0.00042161,120]
[394424747,1763560240699,-501.070849,0.00042161,120]
[394424748,1763560240709,-501.070849,0.00042161,120]
[394424749,1763560240718,-501.070853,0.00042161,120]
[394424750,1763560240727,-207.71,0.00042161,60]
[394424751,1763560240736,-1673481.54195591,0.00042161,120]
[394424752,1763560240747,-1673481.54195591,0.00042161,30]
[394424753,1763560240757,-3454760.07263114,0.00042161,7]
[394424754,1763560240807,-1384.14441634,0.00041014,2]
[394424755,1763560240819,-1200.0,0.00041014,2]
[394424756,1763560240831,-453.551289,0.00041014,2]
[394424771,1763560246101,-19.27807585,0.00041014,2]
[394424772,1763560246113,-3435.02621881,0.00041014,2]
[394424773,1763560246123,-33737.53362667,0.00042161,7]
[394424774,1763560246137,-13353.02912122,0.00042161,7]
[394424775,1763560401470,500.0,0.00042161,120]
[394424776,1763560401694,500.0,0.00042161,120]
[394424777,1763560401954,500.0,0.00042161,120]
[394424778,1763560402211,500.0,0.00042161,120]
[394424779,1763560402453,500.0,0.00042161,120]
[394424780,1763560402701,550.32360753,0.00042161,120]
[394424781,1763560443713,163.69260562,0.000165,2]
[394424782,1763560502223,50000.0,0.00042161,36]
[394424783,1763560621797,195.0,0.00021094,120]
[394424790,1763560776358,-190.65,0.00019176,2]
[394424886,1763561307196,168.29,0.00018995,2]
[394424898,1763561394241,1670.22,0.0004216,120]
[394424899,1763561394491,1670.22,0.0004216,120]
[394424900,1763561395231,1670.22,0.0004216,120]
[394424901,1763561395560,1670.22,0.0004216,120]
[394424902,1763561395820,1670.22,0.0004216,120]
[394424903,1763561396102,1670.22,0.0004216,120]
[394424904,1763561396397,1670.22,0.0004216,120]
[394424905,1763561396618,1670.22,0.0004216,120]
[394424906,1763561396874,1670.22,0.0004216,120]
[394424907,1763561397101,1670.22,0.0004216,120]
[394424908,1763561397363,1670.22,0.0004216,120]
[394424909,1763561397594,1670.22,0.0004216,120]
[394424910,1763561397838,1670.22,0.0004216,120]
[394424911,1763561398107,1670.22,0.0004216,120]
[394424912,1763561398350,1670.22,0.0004216,120]
[394424913,1763561398630,1670.22,0.0004216,120]
[394424914,1763561398870,1670.22,0.0004216,120]
[394424915,1763561399100,1670.22,0.0004216,120]
[394424916,1763561399370,1670.22,0.0004216,120]
[394424917,1763561399625,1670.22,0.0004216,120]
[394424918,1763561399870,1670.22,0.0004216,120]
[394424919,1763561400144,1670.22,0.0004216,120]
[394424920,1763561400368,1670.22,0.0004216,120]
[394424921,1763561400619,1670.2809306,0.0004216,120]
[394424937,1763561431769,-168.29,0.00028492,2]
[394424939,1763561431779,-151.0,0.00030136,7]
[394424940,1763561431788,-207.71,0.00030694,30]
[394424941,1763561431798,-207.71,0.00033768,30]
[394424942,1763561431807,-1758.62,0.00035583,2]
[394424944,1763561431816,-151.0,0.000356,7]
[394424945,1763561431826,-151.0,0.000358,14]
[394424946,1763561431835,-207.71,0.00036842,60]
[394424947,1763561431845,-168.29,0.00037989,2]
[394424948,1763561431855,-941.0,0.00038378,5]
[394424949,1763561431864,-197.25,0.00038379,30]
[394424950,1763561431874,-1269.31152205,0.00038379,2]
[394424951,1763561431991,-4320.12847795,0.00038379,2]
[394424952,1763561432000,-1000.0,0.00038443,2]
[394424953,1763561432010,-200.0,0.00038454,2]
[394424954,1763561432019,-3312.32,0.00038454,2]
[394424955,1763561432029,-959.47,0.00038454,2]
[394424956,1763561432039,-4921.74,0.00038454,90]
[394424957,1763561432052,-509.65,0.00038454,30]
[394424958,1763561432062,-151.0,0.000385,14]
[394424959,1763561432071,-999.0,0.00038603,3]
[394424960,1763561432080,-250.0,0.00038763,2]
[394424961,1763561432089,-1571.7542,0.00038888,30]
[394424962,1763561432098,-2000.0,0.000389,2]
[394424964,1763561432107,-151.05152738,0.00039073,2]
[394424966,1763561432116,-187.05178385,0.00039106,15]
[394424968,1763561432125,-238.46889013,0.00039106,15]
[394424970,1763561432134,-500.0,0.00039106,15]
[394424972,1763561432143,-446.7765262,0.00039106,15]
[394424973,1763561432152,-22585.43433498,0.00039107,2]
[394424974,1763561432163,-13826.60215761,0.00039107,2]
[394424975,1763561432174,-372.85169474,0.00039107,2]
[394424976,1763561432184,-461.625,0.00039107,2]
[394424977,1763561432213,-1701.20349063,0.00039107,2]
[394424987,1763561437717,-526.0,0.00039106,15]
[394424989,1763561437726,-435.01,0.00039106,15]
[394424992,1763561437738,-64.99,0.00039106,15]
[394424993,1763561437747,-381.16168528,0.00039106,15]
[394424995,1763561437756,-500.0,0.00039106,15]
[394424997,1763561437765,-500.0,0.00039106,15]
[394424999,1763561437775,-410.28231472,0.00039106,15]
[394425001,1763561437786,-89.71768528,0.00039106,15]
[394425002,1763561437795,-500.0,0.00039106,15]
[394425003,1763561437805,-721052.28332204,0.00039107,2]
[394425004,1763561437815,-1712.4966,0.00039107,2]
[394425005,1763561437824,-172.06266027,0.00039116,14]
[394425006,1763561437833,-161.93682413,0.00039116,2]
[394425007,1763561437843,-705.0,0.00039127,2]
[394425008,1763561437853,-1605.0,0.00039127,2]
[394425009,1763561437862,-561.0,0.00039127,2]
[394425010,1763561437871,-501.76301213,0.00039173,3]
[394425011,1763561437881,-362.55630464,0.00039173,5]
[394425012,1763561437891,-549.96908235,0.00039173,5]
[394425013,1763561438085,-1109.46608049,0.00039173,15]
[394425014,1763561438099,-2665.76479328,0.00039173,2]
[394425015,1763561438109,-860.0,0.00039206,4]
[394425017,1763561438119,-151.0,0.00039207,14]
[394425018,1763561438128,-664.709,0.00039207,54]
[394425019,1763561438137,-151.962,0.00039207,54]
[394425020,1763561438147,-6124.02372052,0.00039207,2]
[394425021,1763561438157,-256.67140991,0.00039207,2]
[394425022,1763561438167,-216777.425001,0.00039208,4]
[394425024,1763561438177,-151.0,0.00039216,14]
[394425025,1763561438187,-1390.37072186,0.00039217,30]
[394425026,1763561438197,-171.69129294,0.00039273,5]
[394425027,1763561438206,-501.82674646,0.00039273,5]
[394425028,1763561438215,-500.0,0.00039273,2]
[394425029,1763561438224,-500.0,0.00039273,5]
[394425030,1763561438234,-350.17657993,0.00039273,5]
[394425031,1763561438243,-169.72176182,0.00039476,33]
[394425032,1763561438253,-1109.46608045,0.00039494,15]
[394425033,1763561438262,-2665.76479319,0.00039494,2]
[394425034,1763561438271,-151.0,0.000395,7]
[394425035,1763561438282,-151.0,0.00039763,7]
[394425036,1763561438291,-151.0,0.0003978,14]
[394425037,1763561438301,-1000.0,0.0003978,2]
[394425038,1763561438311,-1109.46608045,0.00039815,15]
[394425039,1763561438320,-2665.76479319,0.00039815,2]
[394425040,1763561438329,-207.71,0.00039917,60]
[394425041,1763561438339,-151.0,0.0004,7]
[394425042,1763561438351,-151.0,0.0004,7]
[394425043,1763561438360,-200.0,0.0004,120]
[394425044,1763561438370,-168.0,0.00040095,2]
[394425045,1763561438379,-1109.46608045,0.00040135,15]
[394425046,1763561438389,-2665.76479319,0.00040135,15]
[394425047,1763561438399,-168.0,0.00040159,2]
[394425048,1763561438409,-419.0,0.00040228,120]
[394425049,1763561438418,-1109.46608045,0.00040456,15]
[394425050,1763561438427,-2665.76479319,0.00040456,15]
[394425051,1763561438437,-249.014988,0.00040499,35]
[394425052,1763561438446,-1109.46608045,0.00040777,15]
[394425053,1763561438456,-2665.76479319,0.00040777,15]
[394425054,1763561438466,-201.74945324,0.00040895,2]
[394425055,1763561438477,-580.0,0.00040897,30]
[394425056,1763561438487,-166.67,0.00040967,2]
[394425057,1763561438500,-309.06397576,0.00041014,2]
[394425058,1763561438510,-151.0,0.00041014,2]
[394425059,1763561438519,-2420.7,0.00041095,2]
[394425060,1763561438530,-602.29,0.00041095,2]
[394425061,1763561438540,-1109.46608045,0.00041098,15]
[394425062,1763561438550,-2665.76479319,0.00041098,15]
[394425063,1763561438560,-400.0,0.00041145,120]
[394425064,1763561438570,-527.59143186,0.00041145,120]
[394425065,1763561438581,-162.0,0.00041154,120]
[394425066,1763561438591,-635.50104,0.000412,20]
[394425067,1763561438603,-264.501,0.00041228,2]
[394425068,1763561438613,-150.0,0.00041228,2]
[394425069,1763561438623,-200.0,0.00041228,2]
[394425070,1763561438634,-609.0,0.00041228,2]
[394425071,1763561438644,-3433.0,0.00041228,2]
[394425072,1763561438653,-575.0,0.00041228,2]
[394425073,1763561438663,-1319.0,0.00041228,2]
[394425074,1763561438673,-1600.0,0.00041228,2]
[394425075,1763561438683,-822.0,0.00041228,2]
[394425076,1763561438693,-1276.0,0.00041228,2]
[394425077,1763561438703,-794.0,0.00041228,2]
[394425078,1763561438713,-907.0,0.00041228,2]
[394425079,1763561438722,-1191.0,0.00041228,2]
[394425080,1763561438733,-580.0,0.00041318,30]
[394425081,1763561438742,-6677.0,0.0004133,7]
[394425082,1763561438752,-2420.7,0.00041369,2]
[394425083,1763561438762,-602.29,0.00041369,2]
[394425084,1763561438772,-1109.46608045,0.00041418,15]
[394425085,1763561438782,-2665.76479319,0.00041418,15]
[394425086,1763561438792,-162.94935356,0.00041424,2]
[394425087,1763561438801,-167.79649844,0.000415,120]
[394425088,1763561438811,-342.91360044,0.00041521,37]
[394425089,1763561438820,-2420.7,0.00041643,2]
[394425090,1763561438830,-602.29,0.00041643,2]
[394425091,1763561438839,-1123.23086,0.0004172,10]
[394425092,1763561438851,-1109.46608045,0.00041739,15]
[394425093,1763561438860,-2665.76479319,0.00041739,15]
[394425094,1763561438870,-580.0,0.0004174,30]
[394425095,1763561438881,-300.0,0.00041892,2]
[394425096,1763561438891,-150.0,0.000419,60]
[394425097,1763561438900,-2420.7,0.00041917,2]
[394425098,1763561438910,-300.0,0.00041917,2]
[394425099,1763561438919,-602.29,0.00041917,2]
[394425100,1763561438929,-300.0,0.00041932,2]
[394425101,1763561438939,-150.47,0.0004194,2]
[394425102,1763561438948,-133668.1991,0.0004195,30]
[394425103,1763561438958,-2000.0,0.00041954,3]
[394425104,1763561438967,-277.83488028,0.00042019,2]
[394425105,1763561438976,-300.0,0.00042048,2]
[394425106,1763561438986,-1109.46608045,0.0004206,15]
[394425107,1763561438995,-131987.8632,0.0004206,120]
[394425108,1763561439005,-362.75739818,0.0004206,2]
[394425109,1763561439014,-2665.76479319,0.0004206,15]
[394425110,1763561439024,-151.05152738,0.0004206,28]
[394425111,1763561439033,-328.21440872,0.0004206,2]
[394425112,1763561439043,-300.0,0.00042071,2]
[394425113,1763561439052,-300.0,0.00042078,2]
[394425114,1763561439061,-705.0,0.00042127,2]
[394425115,1763561439071,-1605.0,0.00042127,2]
[394425116,1763561439081,-561.0,0.00042127,2]
[394425117,1763561439091,-450.6622041,0.00042155,2]
[394425118,1763561439102,-50000.0,0.00042159,34]
[394425119,1763561439112,-50000.0,0.00042159,35]
[394425120,1763561439122,-50000.0,0.00042159,36]
[394425121,1763561439132,-50000.0,0.00042159,37]
[394425122,1763561439141,-50000.0,0.00042159,38]
[394425123,1763561439150,-50000.0,0.00042159,39]
[394425124,1763561439160,-87531.09200605,0.0004216,25]
[394425125,1763561439170,-150.86850997,0.0004216,120]
[394425126,1763561439180,-7093113.18586081,0.0004216,7]
[394425127,1763561439244,-72205.39605362,0.0004216,7]
[394425128,1763561439806,-625.66290493,0.0004216,7]
[394425129,1763561439817,-959.47333663,0.0004216,7]
[394425130,1763561439947,-4347.42450965,0.0004216,7]
[394425131,1763561440105,-1371.3699991,0.00039127,2]
[394425166,1763561445111,-5120.6300009,0.00039127,2]
[394425167,1763561445121,-6492.0,0.00042127,2]
[394425168,1763561445130,-206.04265051,0.00042155,2]
[394425169,1763561445139,-181.95156334,0.00042155,2]
[394425170,1763561445148,-216374.52547692,0.0004216,7]
[394425178,1763561446299,-1256.49263341,0.0004216,7]
[394425180,1763561446310,-265.72500152,0.0004216,7]
[394425182,1763561446321,-3674.38917447,0.0004216,7]
[394425331,1763561500298,500.0,0.0004216,120]
[394425333,1763561530952,500.0,0.0004216,120]
[394425334,1763561531590,500.0,0.0004216,120]
[394425335,1763561532314,500.0,0.0004216,120]
[394425336,1763561532863,500.0,0.0004216,120]
[394425337,1763561533510,500.0,0.0004216,120]
[394425338,1763561534133,500.0,0.0004216,120]
[394425339,1763561594104,6432.5,0.0002,2]
[394425340,1763561607272,6432.0,0.0002,2]
[394425344,1763561712262,500.0,0.0004216,120]
[394425345,1763561712951,500.0,0.0004216,120]
[394425346,1763561713600,500.0,0.0004216,120]
[394425347,1763561714300,500.0,0.0004216,120]
[394425348,1763561715004,500.0,0.0004216,120]
[394425349,1763561715639,500.0,0.0004216,120]
[394425350,1763561716408,500.0,0.0004216,120]
[394425351,1763561716980,500.0,0.0004216,120]
[394425352,1763561717652,500.0,0.0004216,120]
[394425353,1763561718277,500.0,0.0004216,120]
[394425354,1763561779835,166.3,0.00013699,2]
[394425356,1763561869461,187.97675,0.0004216,120]
[394425357,1763561869670,214.296312,0.0004216,120]
[394425358,1763561869734,175.193514,0.0004216,120]
[394425359,1763561869780,187.97675,0.0004216,120]
[394425360,1763561870022,214.296312,0.0004216,120]
[394425361,1763561883552,300.0,0.00022206,120]
[394425362,1763561883664,175.37172571,0.00023432,120]
[394425363,1763561888163,200.0,0.00022206,120]
[394425364,1763561888306,200.0,0.00023432,120]
[394425365,1763561928296,-166.3,0.00020187,2]
[394425370,1763561953342,-152.0,0.00021197,2]
[394425371,1763561954237,-43.0,0.00021197,2]
[394425372,1763561993586,-166.66,0.00022206,2]
[394425373,1763561994471,-83.34,0.00022206,2]
[394425374,1763561994494,-83.32,0.00022206,2]
[394425375,1763561995563,-111.68,0.00022206,2]
[394425376,1763562016235,-250.0,0.00023432,2]
[394425382,1763562154791,-166.3,0.00026676,2]
[394425383,1763562154823,-502.33925387,0.000299,2]
[394425384,1763562154860,-896.42,0.0003,30]
[394425385,1763562154894,-547.7793728,0.0003,2]
[394425386,1763562154927,-250.0,0.00030683,2]
[394425387,1763562154959,-200.0,0.00030683,120]
[394425388,1763562154989,-200.0,0.00030683,120]
[394425389,1763562155020,-215.1987578,0.00030683,120]
[394425390,1763562155052,-856.0,0.00030699,2]
[394425391,1763562155071,-166.3,0.000307,5]
[394425392,1763562155082,-333.7,0.000307,5]
[394425393,1763562155091,-168.63925387,0.00031246,3]
[394425394,1763562155102,-131.36074613,0.00031246,3]
[394425395,1763562155111,-765.05925387,0.00031248,5]
[394425396,1763562155121,-236.55331788,0.00031248,5]
[394425397,1763562155130,-166.3,0.00033165,2]
[394425398,1763562155139,-144.92605492,0.00035388,2]
[394425399,1763562155150,-73.10394508,0.00035388,2]
[394425400,1763562155160,-176.89605492,0.00036415,2]
[394425401,1763562155172,-200.0,0.00036415,2]
[394425402,1763562155182,-123.10394508,0.00036415,2]
[394425403,1763562155191,-76.89605492,0.00038,2]
[394425404,1763562155202,-215.1987578,0.00038,2]
[394425405,1763562155213,-856.0,0.00038,2]
[394425406,1763562155224,-31.92523106,0.00038,2]
[394425407,1763562157879,500.0,0.0004216,120]
[394425408,1763562158113,500.0,0.0004216,120]
[394425409,1763562158465,500.0,0.0004216,120]
[394425410,1763562158699,525.94383779,0.0004216,120]
[394425417,1763562310405,-500.0,0.000264,2]
[394425418,1763562311401,-1000.0,0.000264,2]
[394425419,1763562312370,-193.35,0.000264,2]
[394425420,1763562313365,-4666.83730255,0.000264,2]
[394425424,1763562353294,1527.54420503,0.0002,2]
[394425425,1763562391234,550.0,0.0004216,30]
[394425430,1763562444268,5984.18952559,0.0002,2]
[394425432,1763562469746,-193.35,0.0002001,2]
[394425433,1763562470618,-500.0,0.0002001,2]
[394425434,1763562471840,-575.76638909,0.0002001,2]
[394425541,1763562515787,424.23361091,0.00019,2]
[394425542,1763562515811,3713.32754753,0.00019,2]